Cogmind - Beta 14 @@@ ROGUE MODE // 2025.01.02 @ 15:17:32 Player: TerrahLol Result: Destroyed by G-47 Trooper with Particle Gun Performance ------------- Evolutions (2) 1000 Regions Visited (5) 1000 Robots Destroyed (87) 435 Value Destroyed (2147) 2147 Prototype IDs (4) 80 Alien Tech Used (0) 0 Bonus (43) 43 TOTAL SCORE: 4705 Bonus ------- High Alert Combat Kills 108 Friendly Fire -65 Cogmind --------- Core Integrity 0/550 Matter 283/300 Energy 100/100 System Corruption 2% Temperature Cool (9) Movement Walking (120) Location -8/Materials Parts ------- > --- POWER (1) -------- (None) > --- PROPULSION (4) --- Aluminum Leg > --- UTILITY (4) ------ Improved Signal Interpreter Hacking Suite > --- WEAPON (2) ------- Datajack > --- INVENTORY (5) ---- Carbon-fiber Leg Improved Heat Sink Reflective Plating Peak State ------------ > --- POWER ------------ Reinforced Deuterium Engine > --- PROPULSION ------- Aluminum Leg Aluminum Leg Carbon-fiber Leg Improved Carbon-fiber Leg > --- UTILITY ---------- Improved Heat Sink Advanced Visual Processing Unit Improved Signal Interpreter Reflective Plating > --- WEAPON ----------- Gatling Laser Gauss Rifle > --- INVENTORY -------- Improved Heat Sink Visual Processing Unit Reflective Plating Precision Beam Rifle [Rating: 34] Favorites ----------- Power Ion Engine Engine Ion Engine Power Core Light Nuclear Core Propulsion Aluminum Leg Leg Aluminum Leg Utility Large Storage Unit Device Improved Shield Generator Storage Large Storage Unit Processor Improved Signal Interpreter Hackware Hacking Suite Protection Reflective Plating Weapon Improved Assault Rifle Energy Gun Gatling Laser Energy Cannon EM Pulse Cannon Ballistic Gun Improved Assault Rifle Launcher Grenade Launcher Special Melee Weapon Datajack Build | -11 -10 -10 -10 -9 -8 ------- Run | Yrd Mat Min Exi Min Mat Slots Evolved 4 | . . . . . 4 Power . | . . . . . . Propulsion 2 | . . . . . 2 Utility 2 | . . . . . 2 Weapon . | . . . . . . Parts Attached 81 | 6 18 2 . 5 50 Power 11 | 1 2 1 . . 7 Engine 9 | 1 1 1 . . 6 Core 2 | . 1 . . . 1 Reactor . | . . . . . . Propulsion 14 | 2 1 . . 2 9 Treads . | . . . . . . Leg 14 | 2 1 . . 2 9 Wheel . | . . . . . . Hover . | . . . . . . Flight . | . . . . . . Utility 14 | 1 1 . . 1 11 Device 3 | . . . . 1 2 Storage 2 | 1 1 . . . . Processor 2 | . . . . . 2 Hackware 1 | . . . . . 1 Protection 6 | . . . . . 6 Artifact . | . . . . . . Weapon 42 | 2 14 1 . 2 23 Energy Gun 10 | 1 2 . . 1 6 Energy Cannon 1 | . . . . . 1 Ballistic Gun 18 | 1 7 . . 1 9 Ballistic Cannon . | . . . . . . Launcher 11 | . 5 1 . . 5 Special Weapon . | . . . . . . Impact Weapon . | . . . . . . Slashing Weapon . | . . . . . . Piercing Weapon . | . . . . . . Special Melee Weapon 2 | . . . . . 2 Unidentified Prototypes 4 | . 1 . . . 3 Parts Lost 25 | . . 1 . 2 22 Power 5 | . . 1 . . 4 Propulsion 9 | . . . . 2 7 Utility 6 | . . . . . 6 Weapon 5 | . . . . . 5 Highest Loss Streak 9 | . . 1 . 2 9 To Critical Strikes . | . . . . . . Average Slot Usage (%) 88 | . 83 85 85 99 79 Engine 11 | . 6 13 14 14 6 Core 1 | . 7 . . . 1 Leg 26 | . 27 28 28 27 21 Device 5 | . . . . 13 4 Storage 12 | . 14 14 14 14 7 Processor 1 | . . . . . 5 Protection 2 | . . . . . 13 Energy Gun 6 | . 6 . . 12 4 Ballistic Gun 13 | . 16 14 14 14 9 Launcher 5 | . 3 13 14 1 2 Peak Build Rating 34 | 6 13 13 10 19 34 Average Rating 15 | 4 9 9 9 18 25 On Entrance 9 | . 6 13 9 10 19 Naked Turns . | . . . . . . Heaviest Build 51 | 14 31 31 31 37 51 Greatest Support 54 | 20 20 20 20 20 54 Greatest Overweight (x) 11 | . 2 1 1 10 11 Average Overweight (x) . | . . 1 1 1 1 Largest Inventory Capacity 15 | 8 15 15 15 15 15 Average Capacity 14 | 7 14 15 15 15 13 Most Carried 15 | 4 12 10 13 15 15 Average Carried 10 | 2 8 9 12 11 12 Final Capacity 15 | 8 15 15 15 15 5 Final Carried 13 | 4 10 10 13 12 3 Class Distribution -------------------- 90% | Mutant 9% | Scavenger-Mutant Dominant Class ---------------- Mutant | -10/Materials Mutant | -10/Mines Mutant | -10/Exiles Mutant | -9/Mines Mutant | -8/Materials Resources | -11 -10 -10 -10 -9 -8 ----------- Run | Yrd Mat Min Exi Min Mat Matter Collected 2041 | 260 295 44 28 281 1133 Remotely . | . . . . . . Salvage Created 2714 | 65 465 56 . 159 1969 Parts 190 | 1 55 8 . 11 115 Haulers Intercepted 3 | . 1 . . . 2 Recyclers Shooed 1 | . 1 . . . . Parts Field Recycled . | . . . . . . Retrieved Matter . | . . . . . . Parts Self-Destructed . | . . . . . . Prevented . | . . . . . . Kills | -11 -10 -10 -10 -9 -8 ------- Run | Yrd Mat Min Exi Min Mat Combat Hostiles Destroyed 60 | . 12 8 . 6 34 Guns 26 | . 5 1 . 6 14 Cannons 2 | . . . . . 2 AOE 31 | . 7 7 . . 17 Classes Destroyed 13 | 1 6 . . 3 3 Worker 8 | . 4 . . . 4 Builder 7 | . 1 . . . 6 Tunneler 3 | . . . . 1 2 Hauler 3 | . 1 . . . 2 Recycler 5 | 1 1 . . . 3 Operator 2 | . . . . . 2 Watcher 4 | . 3 . . . 1 Swarmer 18 | . 6 8 . 1 3 Grunt 30 | . 6 . . . 24 Sentry 6 | . . . . 2 4 Specialist 2 | . . . . . 2 Heavy 1 | . . . . . 1 Assembled 3 | . . . . 3 . Best Kill Streak 11 | 1 9 3 . 2 11 Combat Bots Only 6 | . 5 3 . 2 6 Max Kills in Single Turn 3 | 1 2 3 . 1 3 Gunslinging . | . . . . . . Exploded 3 | . 2 3 . . 3 Melee . | . . . . . . Uniques/NPCs Destroyed . | . . . . . . Combat | -11 -10 -10 -10 -9 -8 -------- Run | Yrd Mat Min Exi Min Mat Hostile Shots Fired 341 | . 46 21 . 17 257 Missed 99 | . 15 6 . 5 73 Damage Taken 3502 | 30 293 120 . 155 2904 Core 656 | . 48 24 . 31 553 Absorbed by Shields 92 | . . . . 44 48 Redirected to Shielding 19 | . . . . . 19 Ignored by Resistances 96 | . . . . . 96 Regen/Repaired (Parts) 107 | . . . . . 107 Core Remaining (%) 79 | 100 . . . 58 . Volleys Fired 164 | 3 35 5 6 12 103 Largest 2 | 1 2 2 1 2 2 Hottest 108 | 40 60 53 23 108 108 Shots Fired 295 | 3 70 10 6 24 182 Gun 237 | 3 50 6 6 23 149 Cannon 7 | . . . . . 7 Launcher 51 | . 20 4 . 1 26 Special . | . . . . . . Kinetic 160 | . 29 6 6 12 107 Thermal 51 | . . . . 11 40 Explosive 37 | . 20 4 . 1 12 Electromagnetic 47 | 3 21 . . . 23 Robot Hit Streak 9 | 3 4 3 . 8 9 Robot Miss Streak 8 | . 8 2 . 2 5 Penetration Max 1 | . . . . . 1 Secondary Targets 1 | . . . . . 1 Max Gunslinging Chain 1 | . . . . . 1 Shots Hit Robots 157 | 3 20 3 . 17 114 Core Hits 154 | 2 32 8 . 12 100 Critical Kills . | . . . . . . Critical Parts Destroyed 1 | . . . . 1 . Critical Strikes 2 | . . . . 1 1 Destroy 1 | . . . . 1 . Corrupt 1 | . . . . . 1 Melee Attacks 2 | . . . . . 2 Impact . | . . . . . . Slashing . | . . . . . . Piercing . | . . . . . . Sneak Attacks . | . . . . . . Combat Hostiles . | . . . . . . Follow-up Attacks . | . . . . . . Damage Inflicted 6181 | 78 1027 391 . 313 4372 Guns 2580 | 39 298 63 . 283 1897 Cannons 137 | . . . . . 137 Explosions 3439 | 39 719 323 . 20 2338 Melee . | . . . . . . Ramming 25 | . 10 5 . 10 . Kinetic 1553 | . 198 63 . 80 1212 Thermal 1166 | 39 31 . . 203 893 Explosive 2411 | . 688 323 . 20 1380 Electromagnetic 1026 | 39 100 . . . 887 Impact . | . . . . . . Slashing . | . . . . . . Piercing . | . . . . . . Highest Corruption 2 | . . . . . 2 Average Corruption 2 | . . . . . 2 Corruption Purged . | . . . . . . Corruption Blocked . | . . . . . . Effects 1 | . . . . . 1 Data Loss (minor) 1 | . . . . . 1 Overload Shots . | . . . . . . Overflow Damage 45 | . . 9 . . 36 Projectiles . | . . . . . . Explosions 45 | . . 9 . . 36 Melee . | . . . . . . Knockbacks 1 | . . . . 1 . Impact 1 | . . . . 1 . Kinetic . | . . . . . . Secondary . | . . . . . . Self-Inflicted Damage 91 | 30 12 . . 12 37 Shots 5 | 1 1 . . 1 2 Rammed . | . . . . . . Targets Rammed 4 | . 1 1 . 2 . Kicked 4 | . 1 1 . 2 . Crushed . | . . . . . . Highest Temperature 654 | 12 30 . . 144 654 Average Temperature 116 | 12 9 . . 51 143 Received Heat Transfer 1410 | . 60 . . 18 1332 Effects 25 | . . . . . 25 Shutdowns 2 | . . . . . 2 Energy Bleed 1 | . . . . . 1 Matter Decay 6 | . . . . . 6 Short Circuit 3 | . . . . . 3 Damage (major) 12 | . . . . . 12 Damage (core) 1 | . . . . . 1 Siege Activations . | . . . . . . Robots Corrupted 1 | . . . . . 1 Combat Hostiles 1 | . . . . . 1 Parts Fried 5 | . 2 . . . 3 Impact Corruptions . | . . . . . . Robots Melted . | . . . . . . Combat Hostiles . | . . . . . . Parts Melted 3 | . . . . 1 2 Heat Transferred 2248 | 50 50 . . 450 1698 Parts Sabotaged . | . . . . . . Parts Stolen . | . . . . . . Parts Stripped . | . . . . . . Power Chain Reactions 6 | 1 1 . . . 4 Alert | -11 -10 -10 -10 -9 -8 ------- Run | Yrd Mat Min Exi Min Mat Peak Influence 630 | 5 308 223 . 80 630 Initial 88 | . 3 88 . . 31 Average 103 | 2 148 62 . 4 267 Maximum Alert Level 2 | . 1 1 . . 2 Low Security (%) 73 | 100 57 83 . 100 34 Level 1 19 | . 42 16 . . 38 Level 2 6 | . . . . . 27 Level 3 . | . . . . . . Level 4 . | . . . . . . Level 5 . | . . . . . . High Security . | . . . . . . Max Security . | . . . . . . Squads Dispatched 11 | . 2 . . . 9 Investigation 3 | . 1 . . . 2 Extermination . | . . . . . . Reinforcement 8 | . 1 . . . 7 Assault . | . . . . . . Garrison . | . . . . . . Intercept . | . . . . . . Searches Triggered . | . . . . . . Construction Impeded 4 | . . . . . 4 Haulers Reinforced . | . . . . . . Active Scanning Responses . | . . . . . . Cargo Convoy Interrupts . | . . . . . . Stealth | -11 -10 -10 -10 -9 -8 --------- Run | Yrd Mat Min Exi Min Mat Distress Signals 1 | . . . . . 1 Communications Jammed . | . . . . . . Distress Signals . | . . . . . . Times Spotted 82 | . 18 9 . 8 47 Peak Tracking Total 8 | . 3 3 . 3 8 Tactical Retreats 2 | . . . . 1 1 Traps | -11 -10 -10 -10 -9 -8 ------- Run | Yrd Mat Min Exi Min Mat Traps Triggered 5 | . 4 . . 1 . Indirectly . | . . . . . . Trap Hack Attempts . | . . . . . . Triggered . | . . . . . . Disarmed . | . . . . . . Reprogrammed . | . . . . . . Reused . | . . . . . . Traps Extracted . | . . . . . . Installed . | . . . . . . Triggered . | . . . . . . Machines | -11 -10 -10 -10 -9 -8 ---------- Run | Yrd Mat Min Exi Min Mat Machines Disabled 6 | . . 1 . 1 4 Max in Single Turn 2 | . . 1 . 1 2 Machines Repaired . | . . . . . . Machines Dismantled . | . . . . . . Machines Sabotaged . | . . . . . . Overloaded Fab Kills . | . . . . . . Hacking | -11 -10 -10 -10 -9 -8 --------- Run | Yrd Mat Min Exi Min Mat Machines Accessed 16 | . 4 1 4 1 6 Terminals 8 | . 3 1 . . 4 Fabricators . | . . . . . . Repair Stations 2 | . 1 . . . 1 Recycling Units 1 | . . . . . 1 Scanalyzers . | . . . . . . Garrison Access . | . . . . . . Total Hacks 75 | . 7 1 49 1 17 Successful 65 | . 5 . 49 1 10 Failed 10 | . 2 1 . . 7 Catastrophic 1 | . . . . . 1 Database Lockouts . | . . . . . . Manual . | . . . . . . Terminals 18 | . 5 1 . . 12 Fabricators . | . . . . . . Repair Stations 4 | . 2 . . . 2 Recycling Units 3 | . . . . . 3 Scanalyzers . | . . . . . . Garrison Access . | . . . . . . Terminal Hacks 60 | . 4 . 49 1 6 Record 53 | . . . 49 . 4 Open Door 1 | . . . . 1 . Emergency Access Points 1 | . 1 . . . . Alert Level 1 | . . . . . 1 Locate Traps 1 | . 1 . . . . Security Status 1 | . . . . . 1 Investigation Status 1 | . 1 . . . . Zone Layout 1 | . 1 . . . . Fabricator Hacks . | . . . . . . Repair Station Hacks 3 | . 1 . . . 2 Scan Component 2 | . 1 . . . 1 Repair 1 | . . . . . 1 Recycling Unit Hacks 2 | . . . . . 2 Report Inventory 1 | . . . . . 1 Retrieve Components 1 | . . . . . 1 Scanalyzer . | . . . . . . Garrison Access Hacks . | . . . . . . Unauthorized Hacks . | . . . . . . Terminals . | . . . . . . Fabricators . | . . . . . . Repair Stations . | . . . . . . Recycling Units . | . . . . . . Scanalyzers . | . . . . . . Garrison Access . | . . . . . . Data Cores Recovered 1 | . . . . . 1 Used 1 | . . . . . 1 Hacking Detections 7 | . 2 1 . . 4 Full Trace Events 2 | . . . . . 2 Feedback Events . | . . . . . . Feedback Blocked . | . . . . . . Robot Schematics Acquired . | . . . . . . Robots Built . | . . . . . . Authchips . | . . . . . . Time . | . . . . . . Total Robot Build Rating . | . . . . . . Part Schematics Acquired . | . . . . . . Parts Built . | . . . . . . Authchips . | . . . . . . Time . | . . . . . . Total Part Build Rating . | . . . . . . Parts Repaired 1 | . . . . . 1 Time 53 | . . . . . 53 Parts Recycled . | . . . . . . Recycled Matter . | . . . . . . Retrieved Matter . | . . . . . . Retrieved Components 6 | . . . . . 6 Parts Scanalyzed . | . . . . . . Part Schematics Acquired . | . . . . . . Parts Damaged . | . . . . . . Bothacking | -11 -10 -10 -10 -9 -8 ------------ Run | Yrd Mat Min Exi Min Mat Used RIF Installer . | . . . . . . Robots Hacked 2 | . . . . . 2 Non-combat . | . . . . . . Combat 2 | . . . . . 2 Robot Hacks Applied 2 | . . . . . 2 parse_system 2 | . . . . . 2 Relay Couplers Released . | . . . . . . Fabnet Peak Effective % . | . . . . . . Robots Rewired . | . . . . . . Allies Hacked . | . . . . . . Hacks Repelled . | . . . . . . Allies | -11 -10 -10 -10 -9 -8 -------- Run | Yrd Mat Min Exi Min Mat Total Allies . | . . . . . . Largest Group . | . . . . . . Highest-Rated Group . | . . . . . . Highest-Rated Ally . | . . . . . . Total Orders . | . . . . . . Ally Attacks . | . . . . . . Total Damage . | . . . . . . Kills . | . . . . . . Allies Corrupted . | . . . . . . Allies Melted . | . . . . . . Intel | -11 -10 -10 -10 -9 -8 ------- Run | Yrd Mat Min Exi Min Mat Robot Analysis Total . | . . . . . . Derelict Logs Recovered 2 | . . 1 . 1 . Drone Launches . | . . . . . . Drone Recoveries . | . . . . . . Exploration | -11 -10 -10 -10 -9 -8 ------------- Run | Yrd Mat Min Exi Min Mat Turns Passed 7731 | 77 1171 1315 992 2572 1604 Spaces Moved 3714 | 49 547 682 515 1319 602 Core 9 | 5 . . . 1 3 Treads . | . . . . . . Legs 3705 | 44 547 682 515 1318 599 Wheels . | . . . . . . Hover . | . . . . . . Flight . | . . . . . . Fastest Speed 50 | 50 120 190 190 190 120 Average Speed 189 | 112 185 190 190 190 194 Slowest Speed 600 | 120 260 190 190 550 600 Overloaded Moves . | . . . . . . Propulsion Burnouts . | . . . . . . Robots Hopped . | . . . . . . Cave-ins Triggered . | . . . . . . Exploration Rate (%) 69 | 6 91 81 91 101 49 Regions Visited 5 Branch Regions 3 Pre-discovered Areas 3 | . . 1 1 1 . Known Exits Taken . | . . . . . . Unknown Exits Taken 5 | 1 1 1 1 1 . Scrap Searched 2 | . . . . 2 . Spaces Dug . | . . . . . . Terrain Destroyed 250 | 3 108 33 . 11 95 Melee . | . . . . . . Projectile 2 | . . . . 1 1 AOE 248 | 3 108 33 . 10 94 Terrain Rammed . | . . . . . . Walls Destroyed . | . . . . . . Machines Disabled . | . . . . . . Actions | -11 -10 -10 -10 -9 -8 --------- Run | Yrd Mat Min Exi Min Mat Total 4125 | 67 633 690 523 1355 857 Wait 65 | . 4 . . 6 55 Move 3709 | 48 546 681 514 1318 602 Hop . | . . . . . . Pick Up 68 | 10 21 1 3 7 26 Fast Attach 7 | . . . . . 7 Attach 36 | 6 7 1 . 3 19 Detach 1 | . . . . . 1 Swap 38 | . 11 1 . 2 24 Drop 31 | . 8 . . 5 18 Fire 164 | 3 35 5 6 12 103 Melee 2 | . . . . . 2 Ram . | . . . . . . Kick 4 | . 1 1 . 2 . Crush . | . . . . . . Escape Stasis . | . . . . . . Rewire . | . . . . . . Trap . | . . . . . . Miscellaneous . | . . . . . . Route ------- -11/Scrapyard -10/Materials (discovered 5 exits: [*Mat x3] / *Min x2) -10/Mines (discovered 3 exits: [*Mat x2] / *Exi) -10/Exiles -9/Mines (discovered 2 exits: *Mat x2) -8/Materials History --------- Turn | Location | Event 12 | -11/Scrapyard | Discovered new exit (range 16) 78 | -11/Scrapyard | Entered Materials 306 | -10/Materials | Build established: Mutant 364 | -10/Materials | Discovered new exit (range 8) 569 | -10/Materials | Discovered new exit (range 10) 692 | -10/Materials | Discovered new exit (range 6) 846 | -10/Materials | Discovered new exit (range 7) 1069 | -10/Materials | Discovered new exit (range 14) 1249 | -10/Materials | Entered Mines 1286 | -10/Mines | Met a Derelict bent on vengeance 1425 | -10/Mines | Discovered new exit (range 10) 1450 | -10/Mines | Discovered new exit (range 7) 1647 | -10/Mines | YI-UF0 nonchalantly dropped a Grenade Launcher on the ground 2145 | -10/Mines | Learned location of Recycling (-7) 2531 | -10/Mines | Deemed a non-threat by the Exiles lab entrance 2531 | -10/Mines | Discovered new exit (range 5) 2564 | -10/Mines | Entered Exiles 2646 | -10/Exiles | Met 8R-AWN 2678 | -10/Exiles | Met EX-HEX 2745 | -10/Exiles | Met EX-BIN 2914 | -10/Exiles | Met EX-DEC 2925 | -10/Exiles | Learned location of Zion (-7) 3145 | -10/Exiles | Visited The Gauntlet 3484 | -10/Exiles | Discovered new exit (range 14) 3556 | -10/Exiles | Entered Mines 3561 | -9/Mines | Met a Derelict who couldn't figure out how to use a Trap Extractor 4158 | -9/Mines | Assembled infested the area 4163 | -9/Mines | Assisted by a Guerilla fighting off Assembled 4299 | -9/Mines | Found a hidden stash of uninstalled traps 4333 | -9/Mines | Discovered new exit (range 12) 4405 | -9/Mines | Discovered new exit (range 15) 6128 | -9/Mines | Entered Materials 6128 | -8/Materials | Evolved 4 slots: Propulsion x2, Utility x2 6733 | -8/Materials | Lost 3 parts (2n1w) 7342 | -8/Materials | Repaired Broken Carbon-fiber Leg 7452 | -8/Materials | Core integrity fell below 50% 7518 | -8/Materials | Lost 3 parts (1p1u1w) 7545 | -8/Materials | Build established: Scavenger-Mutant 7725 | -8/Materials | Core integrity fell below 20% 7732 | -8/Materials | Destroyed by G-47 Trooper with Particle Gun Last Messages --------------- 07670_ U-05 Engineer builds a Wall. 07681_ Dropped Faulty Prc. Beam Rifle. 07689_ Critical hit (Burn: +37). 07691_ Y-45 Defender destroyed. 07697_ Gatling Laser destroyed. 07699_ Acquired Hvy. Assault Rifle. 07704_ Imp. Aluminum Leg destroyed. 07706_ Jacked G-47 Trooper... >>parse_system Reading system data... 07708_ Critical hit (Burn: +37). 07718_ Imp. Carbon-fiber Leg destroyed. 07718_ Critical hit (Burn: +37). 07719_ Rnf. Deuterium Engine destroyed. 07720_ Imp. Aluminum Leg destroyed. 07722_ Imp. Heat Sink destroyed. 07728_ Hvy. Assault Rifle destroyed. 07728_ Jacked G-47 Trooper... >>parse_system Reading system data... Map ----- +----------------------------------------------------+ | | | | | | | | | | | | | | | | | | | | | | | | | | | | | | | | | | | | | | | | | | | | | ?????????????????????????????????????????????? | | ????????????????##???????????????????????????? | | ????????????????# ########???????????????????? | | ????????????????#!g* @"" #???????????????????? | | ????????????????#!gg ""S #???????????????????? | | ????????????????# g "" #???????????????????? | | ????????????????# #???????????????????? | | ????????????????# #???????????????????? | | ????????????????#!! """ #???????????????????? | | ????????????????#!! """ #???????????????????? | | ????????????????#!! """ #???????????????????? | | ????????????????# [ #######?????????????? | | ????????????????######+### #?????????????? | | ???????????????????# #?????????????? | | ???????????????????# #????????###### | | ???????????????????# ^ #????????? | | ???????????????????# ^ #????????? """ | | ???????????????????# ^^"" " #?????????? """ | | ???????????????????# """ T #?????????? """ | | ???????????????????# """ " #?????????? | | ???????????????????#! #??????????? | | ???????????????????# #############+# | | ???????????????????# | | ???????????????????# ![ | | ???????????????????######## !!%! | | ??????????????????????????# [==######### | | ?????????????????????????## ! ""#??###? | | ???????????????????????? # ===T"#??] | +----------------------------------------------------+ Best States ------------- Heat Dissipation 45 Energy Generation 16 Energy Capacity 290 Matter Stores 300 Matter Capacity 300 Sight Range 20 Terrain Scan Density 10 Armor Coverage 375 Resistance: TH 10 Power Shielding 66 Evasion (%) 55 Offensive Hacking 10 Item Schematics ----------------- None Robot Schematics ------------------ None Fabricated ------------ Nothing Alien Tech Used ----------------- None Achievements -------------- I Survived The Infestation Librarian Power Corrupts Remodeling Tourist Challenges ------------ None Game ------ Seed RemoteProjectionAxe Manual? 0 Play Time 01:07:58 Cumulative 4.4 hours Start 2025.01.02 @ 12:57:42 End 2025.01.02 @ 15:17:32 Sessions 1 Manual Loads 0 Difficulty Rogue Special Mode None Game No. 7 Rogue 7 Adventurer 0 Explorer 0 Win Type - Total 0 Types 0/0/0/0/0/0/0/0/0 Lore% 7 Gallery% 8 Achievement% 10 Wizard Run 0 Options --------- Layout 0 ASCII 0 Keyboard 0 Movement Mouse Keybinds 0 Fullscreen 2 Font 24/Smallcaps Map View 76x50 Zoom Use 43% Tactical HUD 1 Map Filters NONE Filters NONE Steam 1 RUN: bf08027f-c26b-49d4-833a-431b9e86111b